[Event "FIDE Rating Open 2024"]
[Site "Dhaka"]
[Date "2024.01.17"]
[Round "3.3"]
[White "Mohammad Minhaz Uddin"]
[Black "Uddin, Saif"]
[Result "1-0"]
[ECO "B07"]
[WhiteElo "2224"]
[BlackElo "1938"]
[Annotator "TA"]
[PlyCount "77"]
[EventDate "2024.01.16"]
[EventType "swiss"]
[EventCountry "BAN"]
[SourceTitle "playchess.com"]
[Source "ChessBase"]
[SourceQuality "1"]
[TimeControl "5400+30"]

{[%evp 10,77,49,26,56,47,34,34,38,33,31,47,43,38,43,42,50,56,39,57,49,28,29,23,66,33,51,24,13,0,4,6,100,93,93,87,75,64,90,84,85,100,195,150,338,330,327,311,456,177,195,177,271,253,29988,6295,29989,6207,6130,6111,6079,6079,5216,5223,4133,2265,5121,5089,1774,1743]} 1. e4 {[%emt 0:02:45]} d6 {[%emt 0:00:15]} 2. d4 {[%emt 0:00:18]} Nf6 {[%emt 0:00:17]} 3. Nc3 {[%emt 0:00:10]} c6 {[%emt 0:00:26]} 4. a4 {[%emt 0:00:36]} Qa5 {[%emt 0:02:45]} 5. Bd3 {[%emt 0:01:03]} e5 {[%emt 0:00:31]} 6. Nge2 {[%emt 0:00:07]} Nbd7 {[%emt 0:00:34][%cal Bb8d7,Bd7c5,Bc5d3][%mdl 32]} 7. O-O {[%emt 0:00:32]} Be7 {[%emt 0:01:37]} 8. Bd2 {[%emt 0:07:07][%cal Oc3d5]} Qc7 {[%emt 0:00:51] White is slightly better.} 9. a5 {[%emt 0:00:18]} O-O {[%emt 0:00:47]} 10. f4 {[%emt 0:03:50]} exd4 {[%emt 0:00:34]} 11. Nxd4 {[%emt 0:00:03]} Nc5 {[%emt 0:00:24]} 12. h3 {[%emt 0:00:06]} Re8 {[%emt 0:05:30][%cal Of6e4]} 13. b4 {[%emt 0:03:22]} Nxd3 {[%emt 0:05:10]} 14. cxd3 {[%emt 0:00:40]} Bd7 {[%emt 0:05:53]} 15. Nc2 {[%emt 0:01:23]} b6 {[%emt 0:02:32]} 16. g4 {[%emt 0:01:16]} Reb8 {[%emt 0:00:18]} 17. axb6 {[%emt 0:02:25]} axb6 {[%emt 0:00:45]} 18. Rxa8 {[%emt 0:00:07]} Rxa8 {[%emt 0:00:01]} 19. g5 {[%emt 0:06:55]} Ne8 {[%emt 0:04:02]} 20. Qf3 {[%emt 0:00:17]} Qb7 {[%emt 0:01:10]} (20... Qd8 $11 {remains equal.}) 21. f5 $16 {[%emt 0:00:28][%cal Of5f6]} Bf8 {[%emt 0:00:18]} 22. h4 {[%emt 0:00:48] White is more active.} c5 {[%emt 0:00:16][%cal Od6d5]} 23. Rf2 {[%emt 0:09:53]} Ba4 {[%emt 0:05:23]} 24. Ne3 {[%emt 0:00:43]} cxb4 {[%emt 0:01:18]} 25. Ncd5 {[%emt 0:00:02] Excellent horsemanship.} b3 {[%emt 0:00:36]} (25... Nc7 $16) 26. Bc3 $18 {[%emt 0:00:02][%cal Og5g6]} Bb5 $2 {[%emt 0:03:06] [#] This move loses the game for Black.} (26... Nc7 $16 {was worth a try.}) 27. g6 $1 {[%emt 0:06:17][%mdl 512] aiming for Qh5.} Ra2 {[%emt 0:02:12]} (27... Bxd3 $2 28. Qh5 h6 29. f6 $18) 28. Bb2 {[%emt 0:07:54]} Bc6 {[%emt 0:00:53]} (28... Rxb2 $142 29. Rxb2 Bc6 30. Rxb3 Bxd5 31. Nxd5 hxg6) 29. gxh7+ $2 {[%emt 0:03:09]} (29. Qh5 {[%csl Gg6][%cal Rh5h7]} h6 30. f6 gxf6 31. Rxf6 Bxd5 32. Nxd5 Nxf6 33. Nxf6+ Kg7 (33... Kh8 34. g7+ Bxg7 35. Qf5) 34. Ng4+ Kg8 35. Nxh6+ (35. Nf6+ Kg7 $18) 35... Bxh6 36. Qxh6 fxg6 (36... Rxb2 37. g7 Rb1+ 38. Kh2 Rb2+ 39. Kg3) 37. Qh8+ (37. Qxg6+ Kf8 $11) 37... Kf7 38. Qg7+ Ke6 39. Qxb7 (39. Qxg6+ Kd7 $11) 39... Rxb2 40. Qg7 (40. Qxb6 Ke5 $18) 40... Rb1+ 41. Kg2) 29... Kxh7 {[%emt 0:02:06]} 30. f6 {[%emt 0:10:19] Strongly threatening Qh5+.} Bxd5 {[%emt 0:06:14]} (30... Kg8 {was necessary.} 31. Qh5 (31. fxg7 Bxg7 32. Bxg7 Rxf2 $11) 31... Rxb2 32. Rxb2 Bxd5 33. Nxd5 (33. Qxd5 Qc8 $11) 33... Qc6) 31. Nxd5 $40 {[%emt 0:00:15][%mdl 128] [#] White wants to mate with Qh5+. White attacks with force.} Qd7 $2 {[%emt 0:01:00]} (31... Kg8 $18 32. Rg2 Qa7) 32. Qh5+ {[%emt 0:10:16]} (32. Nxb6 Qa7 33. Kg2 Nxf6 $17 (33... Qxb6 34. fxg7 Nxg7 35. Qxf7 $15) (33... Rxb2 34. Rxb2 Qxb6 35. fxg7 $11)) 32... Kg8 {[%emt 0:00:03]} 33. fxg7 {[%emt 0:00:18]} (33. Nxb6 $2 Qa7 34. Nc4 Nxf6 $19 (34... gxf6 35. Kg2 $11)) (33. Ne7+ $142 Bxe7 34. fxg7 Qg4+ 35. Qxg4 Rxb2 36. Qh5 (36. Rxb2 Nxg7 37. Rxb3 Bd8 $18) 36... Rb1+ 37. Kh2 Nxg7 38. Qxf7+ Kh8 39. Rg2 (39. Qxe7 b2 $18)) 33... Bxg7 {[%emt 0:00:08] White is clearly winning.} 34. Bxg7 {[%emt 0:00:12]} (34. Nxb6 $2 Qa7 35. Qb5 Rxb2 $19) 34... Kxg7 {[%emt 0:00:16]} 35. Qg5+ {[%emt 0:00:05]} Kf8 {[%emt 0:02:08]} 36. Qh6+ {[%emt 0:00:06]} (36. Nxb6 $2 Qh3 37. Qh6+ Kg8 38. Rxa2 bxa2 39. Qg5+ Ng7 $19) 36... Kg8 {[%emt 0:00:05]} 37. Rf5 {[%emt 0:06:27]} (37. Nxb6 Qg4+ 38. Kh1 Qh3+ (38... Rxf2 39. Qg5+ Qxg5 40. hxg5 b2 41. Kg1 Rc2 42. Kh1 b1=Q#) 39. Kg1 Ra1+ (39... Qxd3 40. Qg5+ Ng7 41. Nd7 $15) (39... Qxd3 40. Qg5+ Ng7 41. Nd7 $11)) 37... f6 {[%emt 0:00:02] Prevents Rg5+.} 38. Nxf6+ {[%emt 0:00:32]} (38. Nxb6 Qxf5 39. exf5 b2 40. Kg2 b1=Q+ (40... b1=R+ 41. Kf3 $11) 41. Kf3 Qh1+ (41... Qxb6 $2 42. Qe3 $19) 42. Kg4 Qe1 (42... Rg2+ {gets mated.} 43. Kf3 Rd2+ 44. Ke3 Qe1+ 45. Kd4 Qe5+ 46. Kc4 Rc2+ 47. Kb4 Rb2+ 48. Ka3 Qc3+ 49. Ka4 Qb4#) 43. Qg6+ Ng7) (38. Qg6+ $2 Qg7 39. Qxg7+ (39. Ne7+ $2 Kf8 $19) 39... Kxg7 $19) 38... Nxf6 {[%emt 0:00:33]} 39. Qxf6 {[%emt 0:00:22] Weighted Error Value: White=0.28 (precise) /Black=0.69.  Loses game:     	---       	Black=1      Mistake:       	White=1     	Black=5      Inaccurate:     	White=2     	Black=3      OK:         	White=9     	Black=11     Best:        	White=4     	---} 1-0

[Event "FIDE Rating Open 2024"]
[Site "Dhaka"]
[Date "2024.01.17"]
[Round "3.4"]
[White "Abu Sufian, Shakil"]
[Black "Hossain, Delwar"]
[Result "1-0"]
[ECO "B19"]
[WhiteElo "2199"]
[BlackElo "1930"]
[Annotator "TA"]
[PlyCount "100"]
[EventDate "2024.01.16"]
[EventType "swiss"]
[EventCountry "BAN"]
[SourceTitle "playchess.com"]
[Source "ChessBase"]
[SourceQuality "1"]
[TimeControl "5400+30"]

{[%evp 23,100,15,37,47,24,0,0,6,92,91,89,96,95,86,93,83,106,122,122,119,234,207,216,212,208,218,218,220,237,240,247,243,294,295,295,288,294,287,310,291,329,322,322,317,374,374,393,380,490,462,489,478,567,520,668,694,926,888,960,902,859,626,730,506,484,462,5072,5089,4133,2507,5097,5073,1071,735,29966,29967,29941,10497,5210]} 1. e4 {[%emt 0:00:10]} c6 {[%emt 0:00:23]} 2. d4 {[%emt 0:00:12]} d5 {[%emt 0:00:06]} 3. Nc3 {[%emt 0:00:09]} dxe4 {[%emt 0:01:07]} 4. Nxe4 {[%emt 0:00:03]} Bf5 {[%emt 0:00:16]} 5. Ng3 {[%emt 0:00:06]} Bg6 {[%emt 0:00:16]} 6. h4 {[%emt 0:00:16]} h6 {[%emt 0:00:10]} 7. Nf3 {[%emt 0:00:07]} e6 {[%emt 0:00:44]} 8. Ne5 {[%emt 0:00:58]} Bh7 {[%emt 0:00:37]} 9. Bd3 {[%emt 0:00:25]} Bxd3 {[%emt 0:03:34]} 10. Qxd3 {[%emt 0:00:05]} Nd7 {[%emt 0:00:32]} 11. f4 {[%emt 0:00:10]} Ngf6 {[%emt 0:00:36]} 12. Bd2 {[%emt 0:05:00]} Be7 {[%emt 0:04:34]} 13. O-O-O {[%emt 0:00:15]} c5 {[%emt 0:12:12]} 14. Qf3 {[%emt 0:35:01] f5 would now be deadly.} cxd4 {[%emt 0:02:32]} 15. Qxb7 {[%emt 0:00:40] The position is equal.} Qc8 {[%emt 0:02:27] Against Nc6} (15... Rb8 $11 {remains equal.} 16. Qa6 Rb6) 16. Qxc8+ $16 {[%emt 0:02:18] White stays focused until the end.} Rxc8 {[%emt 0:00:09] [#]} 17. Nxd7 {[%emt 0:00:18]} Nxd7 {[%emt 0:00:19][%cal Bf6d7,Bd7b6,Bb6d5][%mdl 32]} 18. Be1 {[%emt 0:02:04]} Nb6 {[%emt 0:02:17]} 19. Rxd4 {[%emt 0:04:38]} Nd5 {[%emt 0:00:59]} 20. Bd2 {[%emt 0:00:40]} Bc5 {[%emt 0:01:31]} 21. Rd3 {[%emt 0:00:19]} f5 {[%emt 0:02:18] [#]} (21... a5 $16 {keeps fighting.} 22. a3 (22. Bxa5 Nxf4 23. Rf3 Nd5 $16) 22... O-O) 22. Nxf5 $1 {[%emt 0:04:41][%mdl 512]} O-O {[%emt 0:00:49]} 23. Nd4 {[%emt 0:00:10]} Nxf4 {[%emt 0:01:58]} 24. Bxf4 {[%emt 0:00:06]} Rxf4 {[%emt 0:00:26]} 25. Nxe6 {[%emt 0:00:10]} Rf6 {[%emt 0:02:05]} 26. Nxc5 {[%emt 0:00:26]} Rxc5 $18 {[%emt 0:00:13][%mdl 4096] Endgame. KRR-KRR} 27. b3 {[%emt 0:02:06]} a5 {[%emt 0:00:27]} 28. a4 {[%emt 0:00:43]} Rf2 {[%emt 0:01:29]} 29. Rd2 {[%emt 0:00:06]} Rf4 {[%emt 0:00:33]} 30. Kb2 {[%emt 0:01:17]} Rg4 {[%emt 0:00:29]} 31. Rh3 {[%emt 0:02:15]} Rh5 {[%emt 0:02:20]} 32. g3 {[%emt 0:00:33]} Re5 {[%emt 0:02:40]} 33. Rd3 {[%emt 0:01:11]} Rge4 {[%emt 0:02:50]} 34. Rh1 {[%emt 0:01:38]} Kh7 {[%emt 0:00:39]} 35. Rhd1 {[%emt 0:00:09]} Kg6 {[%emt 0:01:00]} 36. Rd5 {[%emt 0:03:03]} Kf5 {[%emt 0:01:02]} 37. Rxe5+ {[%emt 0:00:35]} Kxe5 {[%emt 0:01:27] KR-KR} 38. Rd3 {[%emt 0:01:48]} g5 {[%emt 0:00:33]} 39. hxg5 {[%emt 0:00:10]} hxg5 {[%emt 0:00:29][%cal Bh6g5,Bg5g4][%mdl 32]} 40. c4 {[%emt 0:02:00][%cal Bc2c4,Bc4c5,Bc5c6,Bc6c7][%mdl 32]} g4 {[%emt 0:02:13]} 41. Rd5+ {[%emt 0:01:25]} Ke6 {[%emt 0:01:00]} 42. Kc3 {[%emt 0:01:17]} Re1 {[%emt 0:01:59]} 43. Kd2 {[%emt 0:03:31] Against Rc1} Rg1 {[%emt 0:00:35]} 44. Rd3 {[%emt 0:00:11]} (44. Rxa5 Rxg3 45. Kc2 Kf6 $18) 44... Ke5 {[%emt 0:00:49]} (44... Rg2+ $142 45. Kc3 Rg1) 45. c5 {[%emt 0:00:40]} Rh1 {[%emt 0:01:36]} 46. Rc3 {[%emt 0:06:04] c6 is the strong threat.} Ke4 {[%emt 0:01:24]} 47. c6 {[%emt 0:00:54]} Rh2+ {[%emt 0:00:56]} 48. Kc1 {[%emt 0:00:17] And now Rc4+ would win.} Rh8 {[%emt 0:00:35]} 49. c7 {[%emt 0:00:22]} Rc8 {[%emt 0:00:27]} 50. Kd2 {[%emt 0:00:10] Ke2 would kill now.} Kd5 {[%emt 0:44:48] Weighted Error Value: White=0.16 (very precise) /Black=0.40.  Mistake:       	---       	Black=3      Inaccurate:     	---       	Black=1      OK:         	White=21    	Black=6      Best:        	White=2     	Black=1} 1-0

[Event "FIDE Rating Open 2024"]
[Site "Dhaka"]
[Date "2024.01.17"]
[Round "3.5"]
[White "Sajidul, Haque"]
[Black "Anata, Choudhury"]
[Result "1-0"]
[ECO "B55"]
[WhiteElo "1922"]
[BlackElo "2196"]
[Annotator "RC"]
[PlyCount "127"]
[EventDate "2024.01.16"]
[EventType "swiss"]
[EventCountry "BAN"]
[SourceTitle "playchess.com"]
[Source "ChessBase"]
[SourceQuality "1"]
[TimeControl "5400+30"]

1. e4 {[%emt 0:00:01]} c5 {[%emt 0:07:24]} 2. Nf3 {[%emt 0:00:08]} d6 {[%emt 0:00:06]} 3. d4 {[%emt 0:00:06]} cxd4 {[%emt 0:00:06]} 4. Nxd4 {[%emt 0:00:05]} Nf6 {[%emt 0:00:12]} 5. f3 {[%emt 0:00:02]} e5 {[%emt 0:00:22]} 6. Nb3 {[%emt 0:00:07]} Be7 {[%emt 0:00:43]} 7. c4 {[%emt 0:00:06]} a5 {[%emt 0:00:06]} 8. Be3 {[%emt 0:00:31]} a4 {[%emt 0:00:10]} 9. N3d2 {[%emt 0:00:25]} O-O {[%emt 0:00:19]} 10. Nc3 {[%emt 0:03:08]} Qa5 {[%emt 0:00:53]} 11. Rc1 {[%emt 0:02:32]} Bd8 {[%emt 0:02:57]} 12. c5 {[%emt 0:05:23]} dxc5 {[%emt 0:03:02]} 13. Nc4 {[%emt 0:02:45]} Qc7 {[%emt 0:00:08]} 14. Nb5 {[%emt 0:00:49]} Qe7 {[%emt 0:00:27]} 15. Nbd6 {[%emt 0:03:41]} Nbd7 {[%emt 0:06:07]} 16. Nf5 {[%emt 0:11:42]} Qe6 {[%emt 0:00:23]} 17. Ncd6 {[%emt 0:02:25]} b5 {[%emt 0:24:49]} 18. Bxb5 {[%emt 0:02:36]} Ba5+ {[%emt 0:00:11]} 19. Kf2 {[%emt 0:01:54]} Ba6 {[%emt 0:00:41]} 20. Bxa4 {[%emt 0:12:32]} Qxa2 {[%emt 0:05:39]} 21. Qb3 {[%emt 0:01:06]} Qxb3 {[%emt 0:02:21]} 22. Ne7+ {[%emt 0:00:55]} Kh8 {[%emt 0:00:08]} 23. Bxb3 {[%emt 0:00:04]} Ng8 {[%emt 0:02:05]} 24. Nc6 {[%emt 0:05:14]} c4 {[%emt 0:00:48]} 25. Bxc4 {[%emt 0:09:31]} Bxc4 {[%emt 0:00:42]} 26. Rxc4 {[%emt 0:03:17]} Bc7 {[%emt 0:02:05]} 27. Nxe5 {[%emt 0:01:00]} Bxd6 {[%emt 0:01:24]} 28. Nxd7 {[%emt 0:00:09]} Rfd8 {[%emt 0:00:44]} 29. Nb6 {[%emt 0:03:33]} Ra2 {[%emt 0:00:22]} 30. Bd4 {[%emt 0:04:27]} Ne7 {[%emt 0:03:01]} 31. Ke2 {[%emt 0:06:29]} Ng6 {[%emt 0:03:52]} 32. g3 {[%emt 0:01:27]} h5 {[%emt 0:03:47]} 33. f4 {[%emt 0:01:18]} Kh7 {[%emt 0:00:55]} 34. Kf3 {[%emt 0:01:50]} Bb8 {[%emt 0:00:36]} 35. Nd5 {[%emt 0:01:31]} Ba7 {[%emt 0:00:51]} 36. Nb4 {[%emt 0:01:01]} Rxd4 {[%emt 0:00:36]} 37. Rxd4 {[%emt 0:00:47]} Rxb2 {[%emt 0:00:10]} 38. Nd3 {[%emt 0:01:32]} Bxd4 {[%emt 0:00:24]} 39. Nxb2 {[%emt 0:00:03]} Bxb2 {[%emt 0:00:11]} 40. Rb1 {[%emt 0:00:35]} Ba3 {[%emt 0:02:26]} 41. Ra1 {[%emt 0:02:55]} Bb2 {[%emt 0:01:51]} 42. Ra5 {[%emt 0:01:01]} Kh6 {[%emt 0:00:13]} 43. Rb5 {[%emt 0:00:50]} Bc3 {[%emt 0:03:03]} 44. e5 {[%emt 0:01:22]} Bd4 {[%emt 0:00:50]} 45. Rd5 {[%emt 0:01:24]} Bc3 {[%emt 0:01:04]} 46. Rc5 {[%emt 0:01:01]} Bb4 {[%emt 0:00:16]} 47. Rc4 {[%emt 0:00:42]} Ba5 {[%emt 0:01:04]} 48. Ke4 {[%emt 0:00:33]} Nf8 {[%emt 0:08:30]} 49. Ra4 {[%emt 0:01:19]} Bc7 {[%emt 0:03:33]} 50. Ra7 {[%emt 0:01:09]} Ne6 {[%emt 0:00:06]} 51. f5 {[%emt 0:01:41]} Ng5+ {[%emt 0:00:45]} 52. Kd5 {[%emt 0:00:15]} Bxe5 {[%emt 0:06:52]} 53. Kxe5 {[%emt 0:00:02]} f6+ {[%emt 0:00:10]} 54. Kd6 {[%emt 0:02:18]} Nf3 {[%emt 0:00:29]} 55. h4 {[%emt 0:01:28]} Nd4 {[%emt 0:00:36]} 56. Ra5 {[%emt 0:00:20]} Ne2 {[%emt 0:00:34]} 57. Ke6 {[%emt 0:03:18]} Nxg3 {[%emt 0:01:15]} 58. Kf7 {[%emt 0:00:02]} Kh7 {[%emt 0:01:02]} 59. Kf8 {[%emt 0:00:55]} Kh8 {[%emt 0:01:52]} 60. Rd5 {[%emt 0:00:27]} Kh7 {[%emt 0:01:36]} 61. Kf7 {[%emt 0:00:03]} Ne4 {[%emt 0:00:27]} 62. Rd3 {[%emt 0:00:40]} Nf2 {[%emt 0:00:18]} 63. Rd7 {[%emt 0:00:54]} Ng4 {[%emt 0:02:43]} 64. Kf8 {[%emt 0:00:14]} 1-0

[Event "FIDE Rating Open 2024"]
[Site "Dhaka"]
[Date "2024.01.17"]
[Round "3.6"]
[White "Ahmed, Sheikh Nasir"]
[Black "Mahmood, Nasir Uddin"]
[Result "1-0"]
[ECO "A14"]
[WhiteElo "2182"]
[BlackElo "1885"]
[Annotator "TA"]
[PlyCount "36"]
[EventDate "2024.01.16"]
[EventType "swiss"]
[EventCountry "BAN"]
[SourceTitle "playchess.com"]
[Source "ChessBase"]
[SourceQuality "1"]
[TimeControl "5400+30"]

{[%evp 14,36,22,5,41,15,35,28,23,13,35,9,40,33,57,32,106,101,131,125,228,230,223,240,231]} 1. c4 {[%emt 0:00:03]} e6 {[%emt 0:37:21]} 2. g3 {[%emt 0:00:58]} d5 {[%emt 0:00:18]} 3. Nf3 {[%emt 0:00:12]} Nf6 {[%emt 0:00:19]} 4. Bg2 {[%emt 0:00:09]} c6 {[%emt 0:00:16]} 5. b3 {[%emt 0:00:19]} Be7 {[%emt 0:00:42]} 6. O-O {[%emt 0:00:13]} O-O {[%emt 0:00:09]} 7. Bb2 {[%emt 0:00:16]} Nbd7 {[%emt 0:00:56]} 8. d3 {[%emt 0:02:54]} h6 {[%emt 0:01:28]} 9. Re1 {[%emt 0:04:57]} a5 {[%emt 0:02:23][%cal Oa5a4]} 10. Nc3 {[%emt 0:04:11]} Re8 {[%emt 0:00:44] White has an edge.} 11. Qc2 {[%emt 0:01:56]} Rb8 {[%emt 0:04:23]} 12. Rad1 {[%emt 0:07:03]} b5 {[%emt 0:04:09]} 13. e4 {[%emt 0:14:14][%cal Be2e4,Be4e5][%mdl 32]} bxc4 {[%emt 0:02:40]} 14. bxc4 {[%emt 0:00:38]} dxc4 {[%emt 0:01:39]} (14... Nc5 $14) 15. dxc4 $16 {[%emt 0:01:05]} Qb6 {[%emt 0:01:47]} 16. Na4 {[%emt 0:02:05]} Qa7 {[%emt 0:02:42]} (16... Qc7 $16) 17. e5 $18 {[%emt 0:00:49]} Nh7 {[%emt 0:01:12]} 18. Nd4 {[%emt 0:01:14]} Bb7 {[%emt 0:03:29] Weighted Error Value: White=0.10 (very precise) /Black=0.37.  Mistake:       	---       	Black=2      Inaccurate:     	White=2     	Black=1      OK:         	White=2     	Black=3      Best:        	White=2     	---} 1-0